{"text_format":"1","workbook":"xlsx","n_sheets":2,"sheets":["Arkusz1","Arkusz2"],"not_rendered":{"charts":0,"images":0,"macros":1,"external_links":0,"defined_names":0,"comments":0,"pivot_tables":2},"unopened":[],"bounds":{"document_bytes":16777216,"sheet_cells":100000,"rows_first":2000,"rows_last":500,"rows_between":2000,"halvings":0,"cell_chars":16384,"cell_head_chars":4096},"cells_cut":0,"cells_raw":0,"read":"whole","date_system":"1900"}

{"sheet":"Arkusz1","index":0,"n_rows":48,"n_cols":8,"rows_kept":48,"cut":false,"hidden":false,"merged":[]}
["W tym arkuszu wykorzystano 8 funkcji VBA pozwalających na pracę z datami wcześniejszymi niż rok 1900."]
[]
[]
["Przykłady: urodziny prezydentów"]
[]
["Prezydent","Rok","Miesiąc","Dzień ","XDATE","XDATEDIF","XDATEYEARDIF","XDATEDOW"]
["George Washington  ",1732,2,22,{"$f":"xdate(B7,C7,D7,\"mmmm d, yyyy\")","v":"luty 22, 1732"},{"$f":"xdatedif(TODAY(),E7)","v":101629},{"$f":"xdateyeardif(E7,TODAY())","v":278},{"$f":"CHOOSE(xdatedow(E7),\"Niedziela\",\"Poniedziałek\",\"Wtorek\",\"Środa\",\"Czwartek\",\"Piątek\",\"Sobota\")","v":"Piątek"}]
["John Adams ",1735,10,30,{"$f":"xdate(B8,C8,D8,\"mmmm d, yyyy\")","v":"październik 30, 1735"},{"$f":"xdatedif(TODAY(),E8)","v":100283},{"$f":"xdateyeardif(E8,TODAY())","v":274},{"$f":"CHOOSE(xdatedow(E8),\"Niedziela\",\"Poniedziałek\",\"Wtorek\",\"Środa\",\"Czwartek\",\"Piątek\",\"Sobota\")","v":"Niedziela"}]
["Thomas Jefferson ",1743,4,13,"kwiecień 13, 1743",97561,267,{"$f":"CHOOSE(xdatedow(E9),\"Niedziela\",\"Poniedziałek\",\"Wtorek\",\"Środa\",\"Czwartek\",\"Piątek\",\"Sobota\")","v":"Sobota"}]
["James Madison ",1751,3,16,"marzec 16, 1751",94667,259,{"$f":"CHOOSE(xdatedow(E10),\"Niedziela\",\"Poniedziałek\",\"Wtorek\",\"Środa\",\"Czwartek\",\"Piątek\",\"Sobota\")","v":"Wtorek"}]
["James Monroe ",1758,4,28,{"$f":"xdate(B11,C11,D11,\"mmmm d, yyyy\")","v":"kwiecień 28, 1758"},92067,252,{"$f":"CHOOSE(xdatedow(E11),\"Niedziela\",\"Poniedziałek\",\"Wtorek\",\"Środa\",\"Czwartek\",\"Piątek\",\"Sobota\")","v":"Piątek"}]
["John Quincy Adams ",1767,7,11,"lipiec 11, 1767",88706,242,{"$f":"CHOOSE(xdatedow(E12),\"Niedziela\",\"Poniedziałek\",\"Wtorek\",\"Środa\",\"Czwartek\",\"Piątek\",\"Sobota\")","v":"Sobota"}]
["Andrew Jackson ",1767,3,15,"marzec 15, 1767",88824,243,{"$f":"CHOOSE(xdatedow(E13),\"Niedziela\",\"Poniedziałek\",\"Wtorek\",\"Środa\",\"Czwartek\",\"Piątek\",\"Sobota\")","v":"Niedziela"}]
["Martin Van Buren ",1782,12,5,"grudzień 5, 1782",83080,227,{"$f":"CHOOSE(xdatedow(E14),\"Niedziela\",\"Poniedziałek\",\"Wtorek\",\"Środa\",\"Czwartek\",\"Piątek\",\"Sobota\")","v":"Czwartek"}]
["William Henry Harrison ",1773,2,9,"luty 9, 1773",86666,237,{"$f":"CHOOSE(xdatedow(E15),\"Niedziela\",\"Poniedziałek\",\"Wtorek\",\"Środa\",\"Czwartek\",\"Piątek\",\"Sobota\")","v":"Wtorek"}]
["John Tyler ",1790,3,29,"marzec 29, 1790",80409,220,{"$f":"CHOOSE(xdatedow(E16),\"Niedziela\",\"Poniedziałek\",\"Wtorek\",\"Środa\",\"Czwartek\",\"Piątek\",\"Sobota\")","v":"Poniedziałek"}]
["James K. Polk ",1795,11,2,"listopad 2, 1795",78365,214,{"$f":"CHOOSE(xdatedow(E17),\"Niedziela\",\"Poniedziałek\",\"Wtorek\",\"Środa\",\"Czwartek\",\"Piątek\",\"Sobota\")","v":"Poniedziałek"}]
["Zachary Taylor ",1784,11,24,"listopad 24, 1784",82360,225,{"$f":"CHOOSE(xdatedow(E18),\"Niedziela\",\"Poniedziałek\",\"Wtorek\",\"Środa\",\"Czwartek\",\"Piątek\",\"Sobota\")","v":"Środa"}]
["Millard Fillmore ",1800,1,7,"styczeń 7, 1800",76838,210,{"$f":"CHOOSE(xdatedow(E19),\"Niedziela\",\"Poniedziałek\",\"Wtorek\",\"Środa\",\"Czwartek\",\"Piątek\",\"Sobota\")","v":"Wtorek"}]
["Franklin Pierce ",1804,11,23,"listopad 23, 1804",75057,205,{"$f":"CHOOSE(xdatedow(E20),\"Niedziela\",\"Poniedziałek\",\"Wtorek\",\"Środa\",\"Czwartek\",\"Piątek\",\"Sobota\")","v":"Piątek"}]
["James Buchanan ",1791,4,23,"kwiecień 23, 1791",80019,219,{"$f":"CHOOSE(xdatedow(E21),\"Niedziela\",\"Poniedziałek\",\"Wtorek\",\"Środa\",\"Czwartek\",\"Piątek\",\"Sobota\")","v":"Sobota"}]
["Abraham Lincoln ",1809,2,12,"luty 12, 1809",73515,201,{"$f":"CHOOSE(xdatedow(E22),\"Niedziela\",\"Poniedziałek\",\"Wtorek\",\"Środa\",\"Czwartek\",\"Piątek\",\"Sobota\")","v":"Niedziela"}]
["Andrew Johnson ",1808,12,29,"grudzień 29, 1808",73560,201,{"$f":"CHOOSE(xdatedow(E23),\"Niedziela\",\"Poniedziałek\",\"Wtorek\",\"Środa\",\"Czwartek\",\"Piątek\",\"Sobota\")","v":"Czwartek"}]
["Ulysses S. Grant ",1822,4,27,"kwiecień 27, 1822",68693,188,{"$f":"CHOOSE(xdatedow(E24),\"Niedziela\",\"Poniedziałek\",\"Wtorek\",\"Środa\",\"Czwartek\",\"Piątek\",\"Sobota\")","v":"Sobota"}]
["Rutherford B. Hayes ",1822,10,4,"październik 4, 1822",68533,187,{"$f":"CHOOSE(xdatedow(E25),\"Niedziela\",\"Poniedziałek\",\"Wtorek\",\"Środa\",\"Czwartek\",\"Piątek\",\"Sobota\")","v":"Piątek"}]
["James A. Garfield ",1831,11,19,"listopad 19, 1831",65200,178,{"$f":"CHOOSE(xdatedow(E26),\"Niedziela\",\"Poniedziałek\",\"Wtorek\",\"Środa\",\"Czwartek\",\"Piątek\",\"Sobota\")","v":"Sobota"}]
["Chester A. Arthur ",1829,10,5,"październik 5, 1829",65975,180,{"$f":"CHOOSE(xdatedow(E27),\"Niedziela\",\"Poniedziałek\",\"Wtorek\",\"Środa\",\"Czwartek\",\"Piątek\",\"Sobota\")","v":"Poniedziałek"}]
["Grover Cleveland ",1837,3,18,"marzec 18, 1837",63254,173,{"$f":"CHOOSE(xdatedow(E28),\"Niedziela\",\"Poniedziałek\",\"Wtorek\",\"Środa\",\"Czwartek\",\"Piątek\",\"Sobota\")","v":"Sobota"}]
["Benjamin Harrison ",1833,8,20,"sierpień 20, 1833",64560,176,{"$f":"CHOOSE(xdatedow(E29),\"Niedziela\",\"Poniedziałek\",\"Wtorek\",\"Środa\",\"Czwartek\",\"Piątek\",\"Sobota\")","v":"Wtorek"}]
["William McKinley ",1843,1,29,"styczeń 29, 1843",61111,167,{"$f":"CHOOSE(xdatedow(E30),\"Niedziela\",\"Poniedziałek\",\"Wtorek\",\"Środa\",\"Czwartek\",\"Piątek\",\"Sobota\")","v":"Niedziela"}]
["Theodore Roosevelt ",1858,10,27,"październik 27, 1858",55361,151,{"$f":"CHOOSE(xdatedow(E31),\"Niedziela\",\"Poniedziałek\",\"Wtorek\",\"Środa\",\"Czwartek\",\"Piątek\",\"Sobota\")","v":"Środa"}]
["William Howard Taft ",1857,9,15,"wrzesień 15, 1857",55768,152,{"$f":"CHOOSE(xdatedow(E32),\"Niedziela\",\"Poniedziałek\",\"Wtorek\",\"Środa\",\"Czwartek\",\"Piątek\",\"Sobota\")","v":"Wtorek"}]
["Woodrow Wilson ",1856,12,28,"grudzień 28, 1856",56029,153,{"$f":"CHOOSE(xdatedow(E33),\"Niedziela\",\"Poniedziałek\",\"Wtorek\",\"Środa\",\"Czwartek\",\"Piątek\",\"Sobota\")","v":"Niedziela"}]
["Warren G. Harding ",1865,11,2,"listopad 2, 1865",52798,144,{"$f":"CHOOSE(xdatedow(E34),\"Niedziela\",\"Poniedziałek\",\"Wtorek\",\"Środa\",\"Czwartek\",\"Piątek\",\"Sobota\")","v":"Czwartek"}]
["Calvin Coolidge ",1872,7,4,"lipiec 4, 1872",50362,137,{"$f":"CHOOSE(xdatedow(E35),\"Niedziela\",\"Poniedziałek\",\"Wtorek\",\"Środa\",\"Czwartek\",\"Piątek\",\"Sobota\")","v":"Czwartek"}]
["Herbert Hoover ",1874,8,10,"sierpień 10, 1874",49595,135,{"$f":"CHOOSE(xdatedow(E36),\"Niedziela\",\"Poniedziałek\",\"Wtorek\",\"Środa\",\"Czwartek\",\"Piątek\",\"Sobota\")","v":"Poniedziałek"}]
["Franklin D. Roosevelt ",1882,1,30,"styczeń 30, 1882",46865,128,{"$f":"CHOOSE(xdatedow(E37),\"Niedziela\",\"Poniedziałek\",\"Wtorek\",\"Środa\",\"Czwartek\",\"Piątek\",\"Sobota\")","v":"Poniedziałek"}]
["Harry S Truman ",1884,5,8,"maj 8, 1884",46036,126,{"$f":"CHOOSE(xdatedow(E38),\"Niedziela\",\"Poniedziałek\",\"Wtorek\",\"Środa\",\"Czwartek\",\"Piątek\",\"Sobota\")","v":"Czwartek"}]
["Dwight D. Eisenhower ",1890,10,14,"październik 14, 1890",43686,119,{"$f":"CHOOSE(xdatedow(E39),\"Niedziela\",\"Poniedziałek\",\"Wtorek\",\"Środa\",\"Czwartek\",\"Piątek\",\"Sobota\")","v":"Wtorek"}]
["John Kennedy ",1917,5,29,"maj 29, 1917",33963,92,{"$f":"CHOOSE(xdatedow(E40),\"Niedziela\",\"Poniedziałek\",\"Wtorek\",\"Środa\",\"Czwartek\",\"Piątek\",\"Sobota\")","v":"Wtorek"}]
["Lyndon B. Johnson ",1908,8,27,"sierpień 27, 1908",37160,101,{"$f":"CHOOSE(xdatedow(E41),\"Niedziela\",\"Poniedziałek\",\"Wtorek\",\"Środa\",\"Czwartek\",\"Piątek\",\"Sobota\")","v":"Czwartek"}]
["Richard M. Nixon ",1913,1,9,"styczeń 9, 1913",35564,97,{"$f":"CHOOSE(xdatedow(E42),\"Niedziela\",\"Poniedziałek\",\"Wtorek\",\"Środa\",\"Czwartek\",\"Piątek\",\"Sobota\")","v":"Czwartek"}]
["Gerald R. Ford ",1913,7,14,"lipiec 14, 1913",35378,96,{"$f":"CHOOSE(xdatedow(E43),\"Niedziela\",\"Poniedziałek\",\"Wtorek\",\"Środa\",\"Czwartek\",\"Piątek\",\"Sobota\")","v":"Poniedziałek"}]
["Jimmy Carter ",1924,10,1,"październik 1, 1924",31281,85,{"$f":"CHOOSE(xdatedow(E44),\"Niedziela\",\"Poniedziałek\",\"Wtorek\",\"Środa\",\"Czwartek\",\"Piątek\",\"Sobota\")","v":"Środa"}]
["Ronald Reagan ",1911,2,6,"luty 6, 1911",36267,99,{"$f":"CHOOSE(xdatedow(E45),\"Niedziela\",\"Poniedziałek\",\"Wtorek\",\"Środa\",\"Czwartek\",\"Piątek\",\"Sobota\")","v":"Poniedziałek"}]
["George H. W. Bush ",1924,6,12,"czerwiec 12, 1924",31392,85,{"$f":"CHOOSE(xdatedow(E46),\"Niedziela\",\"Poniedziałek\",\"Wtorek\",\"Środa\",\"Czwartek\",\"Piątek\",\"Sobota\")","v":"Czwartek"}]
["William J. Clinton ",1946,8,19,"sierpień 19, 1946",23289,63,{"$f":"CHOOSE(xdatedow(E47),\"Niedziela\",\"Poniedziałek\",\"Wtorek\",\"Środa\",\"Czwartek\",\"Piątek\",\"Sobota\")","v":"Poniedziałek"}]
["George W. Bush ",1946,7,6,"lipiec 6, 1946",23333,63,{"$f":"CHOOSE(xdatedow(E48),\"Niedziela\",\"Poniedziałek\",\"Wtorek\",\"Środa\",\"Czwartek\",\"Piątek\",\"Sobota\")","v":"Sobota"}]

{"sheet":"Arkusz2","index":1,"n_rows":29,"n_cols":2,"rows_kept":29,"cut":false,"hidden":false,"merged":[]}
[]
[]
["Etykiety wierszy","Licznik z XDATEDOW"]
["Piątek",9.5238095238095233E-2]
["Niedziela",0.11904761904761904]
["Sobota",0.16666666666666666]
["Wtorek",0.16666666666666666]
["Czwartek",0.19047619047619047]
["Poniedziałek",0.19047619047619047]
["Środa",7.1428571428571425E-2]
["Suma końcowa",1]
[]
[]
[]
[]
["Etykiety wierszy","Licznik z Miesiąc"]
[1,9.5238095238095233E-2]
[2,9.5238095238095233E-2]
[3,9.5238095238095233E-2]
[4,9.5238095238095233E-2]
[5,4.7619047619047616E-2]
[6,2.3809523809523808E-2]
[7,9.5238095238095233E-2]
[8,9.5238095238095233E-2]
[9,2.3809523809523808E-2]
[10,0.14285714285714285]
[11,0.11904761904761904]
[12,7.1428571428571425E-2]
["Suma końcowa",1]